bitfinex/quotes_SOLUSD_20240921
["timestamp","ask_amount","ask_price","bid_price","bid_amount"]
[1726882718104,86.58559248,146.44,146.43,0.3198781]
[1726882719485,84.877864,146.44,146.43,0.3198781]
[1726882720004,20.25098,146.43,146.41,0.3141043]
[1726882720207,1.95884228,146.42,146.41,0.5307647]
[1726882721006,0.25098,146.42,146.41,0.5307647]
[1726882721206,25.73571773,146.42,146.41,0.5307647]
[1726882721512,45.73571773,146.42,146.41,0.5307647]
[1726882722486,86.58571773,146.42,146.41,0.5307647]
[1726882723095,84.877864,146.42,146.41,0.5307647]
[1726882723586,91.97465187,146.42,146.41,0.5307647]
[1726882724601,93.68289392,146.42,146.41,0.5307647]
[1726882724787,51.12465187,146.42,146.41,0.5307647]
[1726882726106,52.83265722,146.42,146.41,0.5307647]
[1726882728592,29.05577322,146.42,146.41,0.5307647]
[1726882728802,27.09678787,146.42,146.41,0.5307647]
[1726882728992,42.03503039,146.47,146.41,0.5307647]
[1726882729192,7.09384631,146.45,146.41,0.5307647]
[1726882729701,15.0475,146.51,146.41,17.0983647]
[1726882729914,7.09824132,146.48,146.41,17.0983647]
[1726882730092,40.85,146.5,146.41,17.0983647]
[1726882730498,7.09273265,146.48,146.41,17.0983647]
[1726882730687,20.0,146.47,146.41,17.0983647]
[1726882730902,7.09273265,146.48,146.42,1.36579176]
[1726882731488,7.09273265,146.48,146.41,36.69658048]
[1726882731688,1.70708545,146.47,146.41,17.0983647]
[1726882734018,1.83257636,146.46,146.41,17.0983647]
[1726882735014,0.12549,146.46,146.41,16.5676]
[1726882735315,0.12549,146.46,146.41,17.0983647]
[1726882736311,23.902374,146.45,146.41,0.5307647]
[1726882736519,0.25098,146.43,146.41,0.5307647]
[1726882736687,1.70776966,146.42,146.41,0.5307647]
[1726882736888,0.25098,146.43,146.41,0.5307647]
[1726882737085,1.95874925,146.43,146.41,0.5307647]
[1726882737692,0.25098,146.43,146.41,0.5307647]
[1726882737892,20.25098,146.42,146.41,0.5307647]
[1726882740584,20.0,146.42,146.41,0.5307647]
[1726882740792,7.09725809,146.44,146.41,0.5307647]
[1726882740992,21.70764417,146.43,146.41,0.5307647]
[1726882741923,20.0,146.43,146.41,0.5307647]
[1726882742324,1.70770032,146.42,146.41,0.5307647]
[1726882742831,20.0,146.43,146.41,0.5307647]
[1726882743021,60.85,146.5,146.41,0.5307647]
[1726882743224,7.09332654,146.48,146.41,0.5307647]
[1726882744351,0.25098,146.47,146.41,0.5307647]
[1726882744634,7.09332654,146.48,146.41,0.5307647]
[1726882744635,7.09332654,146.48,146.42,22.2949]
[1726882744857,56.5601,146.53,146.43,1.36560762]
[1726882745210,7.09554632,146.5,146.42,22.2949]
[1726882745434,1.7070907,146.49,146.42,22.2949]
[1726882745634,47.675,146.52,146.42,22.2949]
[1726882745833,7.09609283,146.49,146.43,1.36573167]
[1726882746135,15.7101,146.53,146.43,1.36573167]
[1726882746311,7.09174638,146.5,146.42,22.2949]
[1726882746514,47.674,146.54,146.42,22.2949]
[1726882746714,21.70691073,146.53,146.42,22.2949]
[1726882746941,28.79857608,146.53,146.42,22.2949]
[1726882747442,24.027864,146.52,146.42,22.2949]
[1726882747943,0.25098,146.5,146.42,22.2949]
[1726882748740,20.0,146.52,146.43,43.37509978]
[1726882749050,20.0,146.52,146.44,16.287]
[1726882750338,1.70665825,146.51,146.44,16.5036604]
[1726882750530,0.25098,146.5,146.44,16.5036604]
[1726882750926,0.12549,146.5,146.44,16.5036604]
[1726882751623,0.25098,146.51,146.44,16.5036604]
[1726882752846,1.70690863,146.5,146.44,16.5036604]
[1726882753548,0.25098,146.51,146.44,16.5036604]
[1726882753749,20.0,146.52,146.44,16.5036604]
[1726882754123,20.0,146.52,146.45,23.776884]
[1726882754437,1.70661695,146.51,146.45,23.776884]
[1726882754635,20.0,146.52,146.46,7.99187722]
[1726882754844,20.0,146.52,146.46,6.6266]
[1726882755144,6.8222,146.58,146.46,6.6266]
[1726882755145,7.0898639,146.56,146.47,16.505]
[1726882755347,1.70638418,146.55,146.47,16.505]
[1726882756352,24.027864,146.54,146.47,16.505]
[1726882756656,21.70664429,146.53,146.47,16.505]
[1726882759153,20.0,146.53,146.47,16.505]
[1726882759565,0.25098,146.54,146.47,16.505]
[1726882759934,0.25098,146.54,146.48,1.36512143]
[1726882760747,20.0,146.55,146.48,1.36512143]
[1726882761133,20.0,146.55,146.48,30.281884]
[1726882761643,1.70614239,146.55,146.48,6.505]
[1726882761849,0.12549,146.54,146.48,6.505]
[1726882762043,1.7064555,146.53,146.48,6.505]
[1726882763055,1.83193545,146.54,146.48,6.505]
[1726882765335,0.12549,146.54,146.48,6.505]
[1726882765838,0.12549,146.55,146.48,6.505]
[1726882766059,0.25098,146.55,146.48,6.505]
[1726882766261,1.95731277,146.55,146.48,6.505]
[1726882769669,0.25098,146.55,146.48,6.505]
[1726882770045,1.95731498,146.55,146.48,6.505]
[1726882770641,0.25098,146.55,146.48,6.505]
[1726882771934,0.25098,146.55,146.48,19.03385147]
[1726882772559,0.25098,146.55,146.48,6.505]
[1726882773255,20.0,146.56,146.48,6.505]
[1726882773462,20.0,146.56,146.49,12.52885147]
[1726882773655,1.70626616,146.55,146.48,19.03385147]
[1726882774566,0.25098,146.55,146.48,19.03385147]
[1726882775053,1.9573161,146.55,146.48,19.03385147]
[1726882776870,1.9573161,146.55,146.48,6.505]
[1726882777269,20.25098,146.53,146.48,6.505]
[1726882777467,0.25098,146.51,146.48,6.505]
[1726882777764,20.0,146.53,146.48,6.505]
[1726882777970,20.12549,146.54,146.48,6.505]
[1726882778352,20.0,146.52,146.48,6.505]
[1726882778702,0.12549,146.53,146.48,6.505]
[1726882779476,1.83204085,146.53,146.48,6.505]
[1726882779869,0.12549,146.52,146.48,6.505]
[1726882781191,0.12549,146.51,146.47,16.505]
[1726882781483,0.12549,146.5,146.47,16.505]
[1726882782479,20.12549,146.5,146.47,16.505]
[1726882784386,1.70690452,146.49,146.47,16.505]
[1726882784979,1.70690452,146.49,146.46,0.2166604]
[1726882785285,0.12549,146.48,146.46,0.2166604]
[1726882785483,1.70714446,146.47,146.46,0.2166604]
[1726882786470,0.25098,146.47,146.46,0.2166604]
[1726882786871,0.12549,146.47,146.46,0.2166604]
[1726882787071,20.0,146.49,146.46,0.2166604]
[1726882787298,0.12549,146.48,146.46,0.2166604]
[1726882787469,0.12549,146.5,146.46,0.2166604]
[1726882787669,20.12549,146.49,146.46,0.2166604]
[1726882788279,61.11549,146.49,146.46,0.2166604]
[1726882788486,20.12549,146.49,146.46,0.2166604]
[1726882789391,1.70698037,146.48,146.46,0.2166604]
[1726882789793,50.855164,146.47,146.46,0.2166604]
[1726882789996,44.027864,146.47,146.46,0.2166604]
[1726882790575,86.72521677,146.47,146.46,0.2166604]
[1726882790986,85.017864,146.47,146.46,0.2166604]
[1726882794567,20.25098,146.47,146.46,0.2166604]
[1726882794812,20.0,146.47,146.46,0.2166604]
[1726882795288,1.70722965,146.48,146.46,0.2166604]
[1726882796873,21.70722965,146.48,146.46,0.2166604]
[1726882798575,20.0,146.49,146.46,0.2166604]
[1726882798875,1.70708082,146.48,146.46,0.2166604]
[1726882802181,20.0,146.47,146.46,0.2166604]
[1726882806402,85.017864,146.47,146.46,0.2166604]
[1726882806605,61.24098,146.47,146.46,0.2166604]
[1726882807101,20.12549,146.47,146.46,0.2166604]
[1726882807486,20.0,146.47,146.46,0.2166604]
[1726882808100,7.09140335,146.48,146.46,0.2166604]
[1726882808287,40.99,146.51,146.46,0.2166604]
[1726882808498,40.99,146.55,146.46,0.2166604]
[1726882808697,7.08545537,146.52,146.46,0.2166604]
[1726882808888,47.8137,146.55,146.46,0.2166604]
[1726882809093,40.99,146.53,146.46,0.2166604]
[1726882809293,0.25098,146.51,146.46,0.2166604]
[1726882809494,1.70681127,146.5,146.46,0.2166604]
[1726882810298,20.25098,146.51,146.46,0.2166604]
[1726882810782,20.0,146.51,146.46,0.2166604]
[1726882810987,20.0,146.51,146.46,1.58200763]
[1726882811192,7.08911228,146.52,146.46,0.2166604]
[1726882812718,1.70652923,146.51,146.46,0.2166604]
[1726882813594,21.70652923,146.51,146.46,0.2166604]
[1726882813817,0.25098,146.49,146.46,0.2166604]
[1726882813992,1.70705968,146.48,146.46,0.2166604]
[1726882815014,20.0,146.49,146.46,0.2166604]
[1726882815398,1.70686306,146.5,146.46,0.2166604]
[1726882815696,0.12549,146.49,146.46,0.2166604]
[1726882815899,1.70701268,146.48,146.46,0.2166604]
[1726882816827,0.12549,146.49,146.46,0.2166604]
[1726882817033,1.70701589,146.48,146.46,0.2166604]
[1726882817839,0.25098,146.5,146.46,0.2166604]
[1726882818011,0.12549,146.5,146.46,0.2166604]
[1726882819131,1.83235955,146.5,146.46,0.2166604]
[1726882819816,8.92175029,146.5,146.46,0.2166604]
[1726882820024,20.0,146.49,146.46,0.2166604]
[1726882820234,1.70708229,146.48,146.46,0.2166604]
[1726882820734,0.12549,146.47,146.46,0.2166604]
[1726882820936,84.892374,146.47,146.46,0.2166604]
[1726882821113,91.719674,146.47,146.46,0.2166604]
[1726882821623,91.845164,146.47,146.46,0.2166604]
[1726882821933,85.017864,146.47,146.46,0.2166604]
[1726882822721,20.25098,146.47,146.46,0.2166604]
[1726882822918,86.72522962,146.47,146.46,0.2166604]
[1726882823933,85.017864,146.47,146.46,0.2166604]
[1726882824629,86.72542352,146.47,146.46,0.2166604]
[1726882824833,93.55272352,146.47,146.46,0.2166604]
[1726882825141,20.25098,146.44,146.41,0.3141043]
[1726882825448,0.25098,146.42,146.41,0.3141043]
[1726882827518,24.027864,146.42,146.41,0.3141043]
[1726882827720,44.027864,146.42,146.41,0.3141043]
[1726882829544,20.25098,146.42,146.41,0.3141043]
[1726882830928,20.0,146.42,146.41,0.3141043]
[1726882831820,7.09245886,146.44,146.41,0.3141043]
[1726882832353,21.70764459,146.43,146.41,0.3141043]
[1726882832644,0.25098,146.42,146.41,0.3141043]
[1726882833031,24.027864,146.42,146.41,0.3141043]
[1726882833337,44.027864,146.42,146.41,0.3141043]
[1726882833651,45.73594726,146.42,146.41,0.3141043]
[1726882836647,44.027864,146.42,146.41,0.3141043]
[1726882838143,85.017864,146.42,146.41,0.3141043]
[1726882838864,86.72597871,146.42,146.41,0.3141043]
[1726882840550,93.81390188,146.42,146.41,0.3141043]
[1726882840849,92.10578717,146.42,146.41,0.3141043]
[1726882841052,105.402374,146.38,146.37,0.3451664]
[1726882841228,61.11549,146.35,146.32,0.3141043]
[1726882841423,0.12549,146.33,146.32,0.3141043]
[1726882842251,64.892374,146.33,146.32,0.3141043]
[1726882842749,84.892374,146.33,146.32,0.3141043]
[1726882842956,85.017864,146.33,146.32,0.3141043]
[1726882843121,20.25098,146.33,146.32,0.3141043]
[1726882843522,21.96002553,146.33,146.32,0.3141043]
[1726882844534,44.027864,146.33,146.32,0.3141043]
[1726882847153,85.017864,146.33,146.32,0.3141043]
[1726882848769,20.25098,146.33,146.32,0.3141043]
[1726882848950,20.0,146.33,146.32,0.3141043]
[1726882850068,20.25098,146.33,146.32,0.3141043]
[1726882850377,21.95991423,146.33,146.32,0.3141043]
[1726882850767,27.34639116,146.33,146.32,0.3141043]
[1726882851082,7.09541116,146.33,146.32,0.3141043]
[1726882851264,20.0,146.36,146.32,0.3141043]
[1726882851466,40.99,146.39,146.32,0.3141043]
[1726882851766,7.09053873,146.36,146.32,0.3141043]
[1726882851963,1.70855086,146.35,146.32,0.3141043]
[1726882852276,8.79912225,146.35,146.32,0.3141043]
[1726882852479,7.09057139,146.35,146.32,0.3141043]
[1726882852852,20.0,146.34,146.32,0.3141043]
[1726882853152,1.70873626,146.33,146.32,0.3141043]
[1726882854081,20.0,146.34,146.32,0.3141043]
[1726882855088,1.7087487,146.33,146.32,0.3141043]
[1726882856774,1.9597287,146.33,146.32,0.3141043]
[1726882857090,0.25098,146.33,146.32,0.3141043]
[1726882857596,1.95998113,146.33,146.32,0.3141043]
[1726882860877,86.72686513,146.33,146.32,0.3141043]
[1726882861274,85.017864,146.33,146.32,0.3141043]
[1726882862491,92.11048199,146.33,146.32,0.3141043]
[1726882863968,119.45428199,146.33,146.32,0.3141043]
[1726882864195,98.94428199,146.33,146.32,0.3141043]
[1726882864380,92.11048199,146.33,146.32,0.3141043]
[1726882865016,27.09261799,146.33,146.32,0.3141043]
[1726882865204,7.09261799,146.33,146.32,0.3141043]
[1726882865575,1.70859633,146.35,146.32,0.3141043]
[1726882867010,21.70859633,146.35,146.32,0.3141043]
[1726882867188,0.25098,146.34,146.32,0.3141043]
[1726882867512,1.70880657,146.33,146.32,0.3141043]
[1726882868511,1.95978554,146.34,146.32,0.3141043]
[1726882868691,1.70880509,146.33,146.32,0.3141043]
[1726882868899,0.25098,146.34,146.32,0.3141043]
[1726882870307,7.09044415,146.36,146.32,0.3141043]
[1726882872115,7.09044415,146.36,146.35,12.56913443]
[1726882872303,275.61,146.47,146.35,13.93552148]
[1726882872499,0.2483004,146.48,146.4,6.2277]
[1726882872722,7.08559978,146.46,146.4,6.2277]
[1726882873792,1.7074317,146.45,146.4,6.2277]
[1726882874111,7.08559978,146.46,146.4,6.2277]
[1726882875602,1.70742785,146.45,146.4,6.2277]
[1726882877819,7.08559978,146.46,146.4,6.2277]
[1726882881702,20.25098,146.45,146.4,6.2277]
[1726882882003,1.70756991,146.44,146.4,6.2277]
[1726882882700,20.0,146.45,146.4,6.2277]
[1726882883301,1.70750177,146.44,146.4,6.2277]
[1726882885322,0.25098,146.43,146.4,6.2277]
[1726882885495,1.70777239,146.42,146.4,6.2277]
[1726882886397,21.70777239,146.42,146.36,22.2879]
[1726882888302,0.25098,146.41,146.32,16.2798043]
[1726882888506,7.08198,146.39,146.32,16.2798043]
[1726882888823,0.25098,146.39,146.32,16.2798043]
[1726882889120,20.0,146.4,146.32,16.2798043]
[1726882889300,41.11549,146.41,146.32,16.2798043]
[1726882889301,20.12549,146.41,146.32,16.2798043]
[1726882889499,0.25098,146.4,146.32,16.2798043]
[1726882890923,1.95914852,146.4,146.32,16.2798043]
[1726882893037,20.0,146.39,146.32,16.2798043]
[1726882893237,1.70816998,146.38,146.32,16.2798043]
[1726882894319,1.95915387,146.4,146.32,16.2798043]
[1726882895913,20.0,146.38,146.32,16.2798043]
[1726882896513,1.70838365,146.37,146.32,16.2798043]
[1726882897518,20.0,146.38,146.32,16.2798043]
[1726882899657,21.70817604,146.38,146.32,16.2798043]
[1726882900135,20.0,146.38,146.32,16.2798043]
[1726882900554,7.0924638,146.39,146.32,16.2798043]
[1726882901027,1.70817753,146.38,146.32,16.2798043]
[1726882901226,1.70817774,146.37,146.32,16.2798043]
[1726882901926,7.0924638,146.39,146.32,16.2798043]
[1726882902246,1.70817876,146.38,146.32,16.2798043]
[1726882902756,7.0924638,146.39,146.32,16.2798043]
[1726882903732,1.70818022,146.38,146.32,16.2798043]
[1726882903934,1.70818022,146.38,146.32,28.83643706]
[1726882904245,7.0924638,146.39,146.32,16.2798043]
[1726882904943,7.0924638,146.39,146.32,28.83643706]
[1726882905246,7.0924638,146.39,146.33,13.92317779]
[1726882905550,7.0924638,146.39,146.33,12.55663276]
[1726882906041,7.0924638,146.39,146.33,13.92309416]
[1726882906341,7.0924638,146.39,146.35,12.55663276]
[1726882906541,0.12549,146.44,146.36,6.1641]
[1726882906748,20.0,146.41,146.36,6.1641]
[1726882908635,1.70787247,146.4,146.36,6.1641]
[1726882909555,1.70787247,146.4,146.33,29.940984]
[1726882910343,20.0,146.41,146.33,29.940984]
[1726882911447,1.70810594,146.4,146.33,29.940984]
[1726882911829,20.0,146.41,146.33,29.940984]
[1726882912937,1.95906636,146.4,146.33,6.1641]
[1726882916853,20.0,146.39,146.32,16.2798043]
[1726882917039,1.95946373,146.38,146.32,0.3141043]
[1726882917528,20.0,146.37,146.32,0.3141043]
[1726882918450,20.25098,146.38,146.32,0.3141043]
[1726882919045,1.70857733,146.37,146.32,0.3141043]
[1726882919242,20.25098,146.38,146.32,0.3141043]
[1726882921161,1.70858363,146.37,146.32,0.3141043]
[1726882921840,20.25098,146.38,146.32,0.3141043]
[1726882922328,20.0,146.38,146.32,0.3141043]
[1726882922533,20.0,146.38,146.32,12.87073706]
[1726882922739,7.09163317,146.39,146.32,12.87073706]
[1726882927955,7.09163317,146.39,146.33,29.35796504]
[1726882928156,7.09163317,146.39,146.34,12.55663276]
[1726882928742,7.09163317,146.39,146.35,1.36647094]
[1726882929040,47.8188,146.44,146.35,12.55663276]
[1726882929239,0.12549,146.42,146.35,12.55663276]
[1726882929548,21.7079741,146.41,146.35,12.55663276]
[1726882930437,20.0,146.41,146.35,12.55663276]
[1726882930641,7.09253101,146.42,146.37,12.55663276]
[1726882933169,7.09253101,146.42,146.38,12.55663276]
[1726882933466,0.2483004,146.48,146.41,12.55663276]
[1726882933661,0.2483004,146.48,146.42,20.46387489]
[1726882933957,7.32961619,146.48,146.42,19.09813276]
[1726882934659,7.32961619,146.48,146.43,13.92226245]
[1726882934871,0.2483004,146.48,146.43,13.92226245]
[1726882935068,0.2483004,146.48,146.43,12.55663276]
[1726882936067,0.2483004,146.48,146.42,6.5415]
[1726882936372,0.2483004,146.48,146.42,7.90722317]
[1726882936568,0.2483004,146.48,146.42,19.09813276]
[1726882936872,0.2483004,146.48,146.42,6.5415]
[1726882937073,1.70727377,146.47,146.39,15.4536]
[1726882937875,1.95834957,146.47,146.39,15.4536]
[1726882938175,21.95834957,146.47,146.39,15.4536]
[1726882938874,1.95834957,146.47,146.39,15.4536]
[1726882939066,0.25098,146.47,146.39,15.4536]
[1726882939458,0.12549,146.47,146.4,0.12549]
[1726882939660,0.12549,146.47,146.42,12.55663276]
[1726882940073,0.12549,146.47,146.4,23.902374]
[1726882941389,0.2483004,146.48,146.4,23.902374]
[1726882941980,0.2483004,146.48,146.42,23.776884]
[1726882942289,1.9552312,146.48,146.42,23.776884]
[1726882942480,1.9552312,146.48,146.4,23.776884]
[1726882942671,1.9552312,146.48,146.39,15.4536]
[1726882943077,40.99,146.45,146.39,15.4536]
[1726882944191,20.25098,146.47,146.39,15.4536]
[1726882944572,20.0,146.47,146.4,23.776884]
[1726882944878,20.2483004,146.48,146.4,23.776884]
[1726882945271,0.2483004,146.48,146.4,23.776884]
[1726882945586,20.0,146.47,146.4,23.776884]
[1726882946175,1.70715284,146.46,146.4,23.776884]
[1726882948397,1.70715284,146.46,146.39,15.4536]
[1726882948591,0.25098,146.46,146.39,15.4536]
[1726882949099,1.9584384,146.46,146.39,15.4536]
[1726882949785,0.25098,146.44,146.35,15.0085]
[1726882950172,15.1307,146.45,146.35,15.0085]
[1726882950396,1.70757726,146.44,146.35,15.0085]
[1726882950976,1.70757726,146.44,146.36,23.776884]
[1726882952305,0.25098,146.43,146.35,15.0085]
[1726882952514,1.70788089,146.42,146.34,6.3926]
[1726882953008,21.70788089,146.42,146.34,6.3926]
[1726882954700,20.0,146.42,146.34,6.3926]
[1726882955197,1.70797448,146.41,146.34,6.3926]
[1726882956689,27.08726596,146.42,146.34,6.3926]
[1726882958310,27.08726596,146.42,146.33,23.776884]
[1726882958693,0.25098,146.41,146.32,16.4600043]
[1726882958898,1.70816001,146.4,146.32,16.4600043]
[1726882959098,0.25098,146.39,146.32,0.3141043]
[1726882959305,21.70833917,146.38,146.32,0.3141043]
[1726882960014,20.0,146.36,146.32,0.3141043]
[1726882960321,0.25098,146.35,146.32,0.3141043]
[1726882961692,20.0,146.36,146.32,0.3141043]
[1726882962987,1.70847024,146.35,146.32,0.3141043]
[1726882963214,20.0,146.36,146.32,0.3141043]
[1726882963999,1.7086684,146.35,146.32,0.3141043]
[1726882964313,0.25098,146.35,146.32,0.3141043]
[1726882964610,20.0,146.36,146.32,0.3141043]
[1726882971305,1.70858325,146.35,146.32,0.3141043]
[1726882971821,0.25098,146.35,146.32,0.3141043]
[1726882972318,20.0,146.36,146.32,0.3141043]
[1726882978003,21.7083181,146.36,146.32,0.3141043]
[1726882979122,20.0,146.36,146.32,0.3141043]
[1726882980906,8.80164468,146.37,146.32,0.3141043]
[1726882981223,48.72503785,146.41,146.32,0.3141043]
[1726882981224,6.5469,146.41,146.32,0.3141043]
[1726882981432,13.63322706,146.41,146.33,1.36649829]
[1726882982022,13.63322706,146.41,146.33,13.9208846]
[1726882982223,20.0,146.4,146.33,13.9208846]
[1726882983232,7.08632706,146.41,146.33,13.9208846]
[1726882983826,1.70809996,146.4,146.32,12.86849061]
[1726882984033,1.70809996,146.4,146.33,23.776884]
[1726882984735,21.70809996,146.4,146.33,23.776884]
[1726882984916,20.0,146.4,146.33,23.776884]
[1726882985323,1.70810102,146.39,146.33,23.776884]
[1726882986833,1.70810102,146.39,146.32,12.86849061]
[1726882987006,0.25098,146.38,146.32,0.3141043]
[1726882987327,0.12549,146.36,146.32,0.3141043]
[1726882987506,1.70864892,146.35,146.32,0.3141043]
[1726882988920,21.70864892,146.35,146.32,0.3141043]
[1726882990537,0.25098,146.34,146.32,0.3141043]
[1726882990749,1.96000196,146.33,146.32,0.3141043]
[1726882991736,0.25098,146.33,146.32,0.3141043]
[1726882992030,27.32644511,146.33,146.32,0.3141043]
[1726882993427,29.03563588,146.33,146.32,0.3141043]
[1726882993739,27.32644511,146.33,146.32,0.3141043]
[1726883002138,51.10332911,146.33,146.32,0.3141043]
[1726883002340,57.93712911,146.33,146.32,0.3141043]
[1726883003130,57.93712911,146.33,146.28,0.3451664]
[1726883003131,47.8249,146.31,146.28,0.3451664]
[1726883003329,44.027864,146.32,146.28,0.3451664]
[1726883003330,0.25098,146.29,146.28,0.3451664]
[1726883003963,7.32683414,146.29,146.28,0.3451664]
[1726883004247,7.07585414,146.29,146.28,0.3451664]
[1726883004544,27.07585414,146.29,146.28,0.3451664]
[1726883006128,28.78528988,146.29,146.28,0.3451664]
[1726883007555,29.03626988,146.29,146.28,0.3451664]
[1726883008225,27.32683414,146.29,146.28,0.3451664]
[1726883008930,52.81332638,146.29,146.28,0.3451664]
[1726883010046,51.10371814,146.29,146.28,0.3451664]
[1726883012348,27.32683414,146.29,146.28,0.3451664]
[1726883012849,29.03630609,146.29,146.28,0.3451664]
[1726883013142,70.02630609,146.29,146.28,0.3451664]
[1726883014249,68.31683414,146.29,146.28,0.3451664]
[1726883015044,27.32683414,146.29,146.28,0.3451664]
[1726883016652,29.03630517,146.29,146.28,0.3451664]
[1726883019242,93.80318917,146.29,146.28,0.3451664]
[1726883020546,92.09371814,146.29,146.28,0.3451664]
[1726883020749,68.31683414,146.29,146.28,0.3451664]
[1726883022349,7.07585414,146.29,146.28,0.3451664]
[1726883023539,28.7852405,146.29,146.28,0.3451664]
[1726883025133,7.07585414,146.29,146.28,15.5470664]
[1726883025457,40.99,146.37,146.28,15.5470664]
[1726883025660,7.06724636,146.32,146.29,12.57497136]
[1726883025968,1.70878357,146.36,146.29,12.57497136]
[1726883026335,7.06728198,146.32,146.29,12.57497136]
[1726883026533,1.70878357,146.36,146.29,12.57497136]
[1726883026534,0.25098,146.35,146.29,12.57497136]
[1726883026935,7.06728198,146.32,146.29,12.57497136]
[1726883027158,0.25098,146.35,146.29,12.57497136]
[1726883027159,0.25098,146.36,146.29,12.57497136]
[1726883027342,7.06728198,146.32,146.29,12.57497136]
[1726883027760,0.25098,146.36,146.29,12.57497136]
[1726883027931,7.06720005,146.32,146.29,12.57497136]
[1726883028435,20.0,146.38,146.31,12.57497136]
[1726883028635,7.0671484,146.32,146.31,19.23237136]
[1726883028839,20.0,146.38,146.31,19.23237136]
[1726883029056,7.06605512,146.37,146.31,6.6574]
[1726883029361,20.0,146.36,146.31,6.6574]
[1726883029738,1.95986074,146.35,146.28,15.5470664]
[1726883031851,0.25098,146.35,146.28,15.5470664]
[1726883032050,20.0,146.34,146.28,15.5470664]
[1726883032244,0.25098,146.33,146.28,15.5470664]
[1726883035464,0.25098,146.33,146.28,28.12203776]
[1726883038048,41.24098,146.33,146.28,28.12203776]
[1726883038745,41.24098,146.33,146.28,15.5470664]
[1726883039573,48.30779316,146.33,146.28,15.5470664]
[1726883042162,1.70903986,146.32,146.28,15.5470664]
[1726883043264,48.30779316,146.33,146.28,15.5470664]
[1726883047966,48.30779316,146.33,146.28,0.3451664]
[1726883048172,0.25098,146.31,146.28,0.3451664]
[1726883048471,1.70929605,146.3,146.28,0.3451664]
[1726883049960,7.19429901,146.31,146.28,0.3451664]
[1726883050262,7.06880901,146.31,146.28,0.3451664]
[1726883058273,48.05880901,146.31,146.28,0.3451664]
[1726883081004,7.06880901,146.31,146.28,0.3451664]
[1726883081317,20.0,146.36,146.29,29.13507136]
[1726883081487,20.0,146.36,146.3,12.57497136]
[1726883081488,27.06802447,146.36,146.3,12.57497136]
[1726883081695,7.06802447,146.36,146.3,12.57497136]
[1726883082105,7.06802447,146.36,146.31,12.57497136]
[1726883082816,7.06802447,146.36,146.3,12.57497136]
[1726883083011,7.06802447,146.36,146.29,29.13507136]
[1726883084318,7.06802447,146.36,146.29,16.5601]
[1726883084499,1.70871076,146.35,146.29,16.5601]
[1726883085107,0.25098,146.35,146.29,16.5601]
[1726883085696,1.70881583,146.34,146.29,16.5601]
[1726883086819,0.25098,146.33,146.28,6.4087664]
[1726883087117,1.70907763,146.32,146.28,6.4087664]
[1726883087500,61.31098,146.35,146.28,6.4087664]
[1726883089127,0.25098,146.33,146.28,6.4087664]
[1726883089311,1.7090272,146.32,146.28,6.4087664]
[1726883090240,61.31098,146.35,146.28,6.4087664]
[1726883091320,0.25098,146.33,146.28,6.4087664]
[1726883091522,1.70901312,146.32,146.28,6.4087664]
[1726883091910,1.70901312,146.32,146.28,0.3451664]
[1726883092227,7.31865767,146.33,146.28,0.3451664]
[1726883092228,48.37865767,146.33,146.28,0.3451664]
[1726883092606,0.25098,146.31,146.28,0.3451664]
[1726883092828,1.70926253,146.3,146.28,0.3451664]
[1726883093522,0.12549,146.32,146.28,0.3451664]
[1726883093909,0.12549,146.31,146.28,0.3451664]
[1726883094220,1.7093007,146.3,146.28,0.3451664]
[1726883094719,0.12549,146.31,146.28,0.3451664]
[1726883099230,7.06767767,146.33,146.28,0.3451664]
[1726883102140,20.0,146.36,146.28,1.71225577]
[1726883102337,41.06,146.37,146.29,12.57497136]
[1726883102637,48.1261547,146.37,146.3,16.1796]
[1726883103018,7.0661547,146.37,146.3,30.12150737]
[1726883103217,0.12549,146.36,146.3,16.1796]
[1726883103538,1.70874135,146.35,146.3,16.1796]
[1726883105136,48.1261547,146.37,146.3,16.1796]
[1726883105342,48.1261547,146.37,146.3,28.75457136]
[1726883105638,48.1261547,146.37,146.3,30.12145236]
[1726883106039,7.0661547,146.37,146.31,23.776884]
[1726883106413,1.70841676,146.36,146.3,28.75457136]
[1726883106614,1.70841676,146.36,146.3,16.1796]
[1726883107333,0.25098,146.35,146.3,16.1796]
[1726883107740,0.12549,146.33,146.28,0.3451664]
[1726883108041,1.70906194,146.32,146.28,0.3451664]